[Event "RUS-chT Premier 2019"]
[Site "Sochi"]
[Date "2019.05.04"]
[Round "4.19"]
[White "Potkin, Vladimir"]
[Black "Iljiushenok, Ilia"]
[Result "0-1"]
[ECO "B94"]
[WhiteElo "2590"]
[BlackElo "2534"]
[Annotator "ChessBase"]
[PlyCount "76"]
[EventDate "2019.04.30"]
[EventType "team-tourn"]
[EventCountry "RUS"]
[SourceTitle "playchess.com"]
[Source "ChessBase"]
[SourceQuality "1"]
[TimeControl "40/5400+30:1800+30"]

1. e4 {[%emt 0:00:00]} c5 {[%emt 0:00:00]} 2. Nf3 {[%emt 0:00:00]} d6 {[%emt 0:00:00]} 3. d4 {[%emt 0:00:16]} cxd4 {[%emt 0:00:00]} 4. Nxd4 {[%emt 0:00:06]} Nf6 {[%emt 0:00:00]} 5. Nc3 {[%emt 0:00:08]} a6 {[%emt 0:00:01]} 6. Bg5 {[%emt 0:02:50]} Nbd7 {[%emt 0:00:20]} 7. Bc4 {[%emt 0:00:44]} Qb6 {[%emt 0:00:32]} 8. Bb3 {[%emt 0:01:40]} e6 {[%emt 0:00:14]} 9. f4 {[%emt 0:00:55]} Be7 {[%emt 0:02:43]} 10. f5 {[%emt 0:02:15]} Nc5 {[%emt 0:19:54]} 11. Qf3 {[%emt 0:00:43]} Nxb3 {[%emt 0:17:01]} 12. Nxb3 {[%emt 0:00:07]} O-O {[%emt 0:00:16]} 13. O-O-O {[%emt 0:00:54]} Qc7 {[%emt 0:03:25]} 14. Rhf1 {[%emt 0:32:43]} Bd7 {[%emt 0:18:56]} 15. Qg3 {[%emt 0:13:17]} Nh5 {[%emt 0:22:24]} 16. Qh4 {[%emt 0:00:28]} Bxg5+ {[%emt 0:02:05]} 17. Qxg5 {[%emt 0:00:02]} Nf6 {[%emt 0:00:06]} 18. Rf3 {[%emt 0:24:11]} h6 {[%emt 0:02:12]} 19. Qh4 {[%emt 0:00:04]} Rac8 {[%emt 0:01:24]} 20. Rg3 {[%emt 0:14:28]} Kh8 {[%emt 0:00:32]} 21. Rgd3 {[%emt 0:00:26]} b5 {[%emt 0:03:00]} 22. g4 {[%emt 0:01:48]} Nxe4 {[%emt 0:00:51]} 23. g5 {[%emt 0:00:01]} exf5 {[%emt 0:00:27]} 24. Rxd6 {[%emt 0:02:55]} Be6 {[%emt 0:00:26]} 25. gxh6 {[%emt 0:00:41]} g5 {[%emt 0:00:21]} 26. Qe1 {[%emt 0:00:01]} b4 {[%emt 0:02:18]} 27. Qe3 {[%emt 0:00:14]} bxc3 {[%emt 0:00:35]} 28. Qd4+ {[%emt 0:00:50]} f6 {[%emt 0:00:04]} 29. Rxe6 {[%emt 0:00:21]} Rfd8 {[%emt 0:00:10]} 30. Qg1 {[%emt 0:01:03]} cxb2+ {[%emt 0:00:28]} 31. Kxb2 {[%emt 0:00:02]} Qxc2+ {[%emt 0:00:34]} 32. Ka3 {[%emt 0:00:01]} Qxd1 {[%emt 0:01:21]} 33. Re8+ {[%emt 0:00:05]} Kh7 {[%emt 0:00:03]} 34. Re7+ {[%emt 0:01:57]} Kxh6 {[%emt 0:00:44]} 35. Qa7 {[%emt 0:00:02]} Qd6+ {[%emt 0:00:52]} 36. Kb2 {[%emt 0:00:03]} Rc2+ {[%emt 0:01:12]} 37. Kxc2 {[%emt 0:00:05]} Qxh2+ {[%emt 0:00:03]} 38. Kc1 {[%emt 0:00:35]} Rc8+ {[%emt 0:00:03]} 0-1

[Event "RUS-chT Premier 2019"]
[Site "Sochi"]
[Date "2019.05.04"]
[Round "4.22"]
[White "Chernobay, Artem"]
[Black "Yuffa, Daniil"]
[Result "0-1"]
[ECO "D70"]
[WhiteElo "2503"]
[BlackElo "2595"]
[Annotator "ChessBase"]
[PlyCount "62"]
[EventDate "2019.04.30"]
[EventType "team-tourn"]
[EventCountry "RUS"]
[SourceTitle "playchess.com"]
[Source "ChessBase"]
[SourceQuality "1"]
[TimeControl "40/5400+30:1800+30"]

1. c4 {[%emt 0:00:00]} g6 {[%emt 0:00:06]} 2. d4 {[%emt 0:00:00]} Nf6 {[%emt 0:00:53]} 3. Nf3 {[%emt 0:00:36]} d6 {[%emt 0:00:17]} 4. Nc3 {[%emt 0:00:21]} Bf5 {[%emt 0:01:19]} 5. g3 {[%emt 0:01:09]} Ne4 {[%emt 0:01:42]} 6. Bg2 {[%emt 0:05:36]} Nxc3 {[%emt 0:00:59]} 7. bxc3 {[%emt 0:00:07]} Be4 {[%emt 0:02:40]} 8. Bf4 {[%emt 0:11:51]} Nd7 {[%emt 0:03:15]} 9. Qc1 {[%emt 0:06:59]} Nf6 {[%emt 0:11:13]} 10. O-O {[%emt 0:05:41]} Qd7 {[%emt 0:03:52]} 11. Rd1 {[%emt 0:05:44]} Bg7 {[%emt 0:12:46]} 12. Bh6 {[%emt 0:16:54]} O-O {[%emt 0:01:24]} 13. c5 {[%emt 0:08:56]} Rfd8 {[%emt 0:10:27]} 14. Bxg7 {[%emt 0:05:41]} Kxg7 {[%emt 0:00:04]} 15. Qa3 {[%emt 0:00:20]} Qc6 {[%emt 0:05:57]} 16. cxd6 {[%emt 0:01:15]} cxd6 {[%emt 0:00:07]} 17. Rac1 {[%emt 0:04:48]} b5 {[%emt 0:02:03]} 18. Bf1 {[%emt 0:07:28]} Bxf3 {[%emt 0:02:43]} 19. exf3 {[%emt 0:00:04]} a5 {[%emt 0:00:45]} 20. c4 {[%emt 0:01:15]} b4 {[%emt 0:00:54]} 21. Qb2 {[%emt 0:02:21]} Rab8 {[%emt 0:02:36]} 22. f4 {[%emt 0:00:33]} a4 {[%emt 0:01:33]} 23. Re1 {[%emt 0:00:44]} Qc7 {[%emt 0:01:33]} 24. Re3 {[%emt 0:02:43]} Qa7 {[%emt 0:03:13]} 25. Rce1 {[%emt 0:00:39]} Rd7 {[%emt 0:01:36]} 26. Bg2 {[%emt 0:07:11]} Rc7 {[%emt 0:00:36]} 27. h3 {[%emt 0:00:50]} Rxc4 {[%emt 0:03:02]} 28. Rxe7 {[%emt 0:00:17]} Qxd4 {[%emt 0:00:08]} 29. Qe2 {[%emt 0:00:02]} b3 {[%emt 0:01:30]} 30. axb3 {[%emt 0:00:07]} axb3 {[%emt 0:00:34]} 31. g4 {[%emt 0:02:48]} Rc2 {[%emt 0:03:14]} 0-1

[Event "RUS-chT Premier 2019"]
[Site "Sochi"]
[Date "2019.05.04"]
[Round "4.23"]
[White "Lomasov, Semyon"]
[Black "Bykov, Oleg"]
[Result "1-0"]
[ECO "B47"]
[WhiteElo "2541"]
[BlackElo "2395"]
[Annotator "ChessBase"]
[PlyCount "59"]
[EventDate "2019.04.30"]
[EventType "team-tourn"]
[EventCountry "RUS"]
[SourceTitle "playchess.com"]
[Source "ChessBase"]
[SourceQuality "1"]
[TimeControl "40/5400+30:1800+30"]

1. e4 {[%emt 0:00:00]} c5 {[%emt 0:00:00]} 2. Nf3 {[%emt 0:00:00]} e6 {[%emt 0:00:00]} 3. d4 {[%emt 0:00:00]} cxd4 {[%emt 0:00:00]} 4. Nxd4 {[%emt 0:00:00]} Nc6 {[%emt 0:00:00]} 5. Nc3 {[%emt 0:00:02]} Qc7 {[%emt 0:00:00]} 6. a3 {[%emt 0:05:03]} a6 {[%emt 0:00:54]} 7. f4 {[%emt 0:04:25]} Bc5 {[%emt 0:10:54]} 8. Nxc6 {[%emt 0:09:14]} Qxc6 {[%emt 0:03:45]} 9. Qd3 {[%emt 0:00:34]} d6 {[%emt 0:18:56]} 10. Be3 {[%emt 0:19:38]} b5 {[%emt 0:12:14]} 11. O-O-O {[%emt 0:13:34]} Bb7 {[%emt 0:00:56]} 12. e5 {[%emt 0:06:21]} O-O-O {[%emt 0:14:01]} 13. a4 {[%emt 0:03:56]} Bxe3+ {[%emt 0:04:53]} 14. Qxe3 {[%emt 0:01:26]} Qc5 {[%emt 0:16:34]} 15. Qxc5+ {[%emt 0:00:52]} dxc5 {[%emt 0:00:02]} 16. Rxd8+ {[%emt 0:00:18]} Kxd8 {[%emt 0:00:02]} 17. axb5 {[%emt 0:00:06]} axb5 {[%emt 0:00:11]} 18. Bxb5 {[%emt 0:02:10]} Nh6 {[%emt 0:00:16]} 19. Rd1+ {[%emt 0:09:49]} Kc7 {[%emt 0:00:13]} 20. Na4 {[%emt 0:01:24]} Bxg2 {[%emt 0:02:02]} 21. Rd7+ {[%emt 0:00:38]} Kb8 {[%emt 0:00:27]} 22. Nxc5 {[%emt 0:00:28]} Rg8 {[%emt 0:01:31]} 23. Na6+ {[%emt 0:06:31]} Ka8 {[%emt 0:01:06]} 24. h4 {[%emt 0:09:51]} Rc8 {[%emt 0:04:49]} 25. b4 {[%emt 0:01:16]} Nf5 {[%emt 0:03:35]} 26. Bd3 {[%emt 0:01:06]} Nxh4 {[%emt 0:01:54]} 27. b5 {[%emt 0:00:14]} Bb7 {[%emt 0:00:58]} 28. b6 {[%emt 0:01:34]} Bxa6 {[%emt 0:01:41]} 29. Ra7+ {[%emt 0:01:32]} Kb8 {[%emt 0:00:05]} 30. Be4 {[%emt 0:00:04]} 1-0

[Event "RUS-chT Premier 2019"]
[Site "Sochi"]
[Date "2019.05.04"]
[Round "4.24"]
[White "Nozdrachev, Leonid"]
[Black "Kryakvin, Dmitry"]
[Result "1/2-1/2"]
[ECO "D10"]
[WhiteElo "2367"]
[BlackElo "2588"]
[Annotator "ChessBase"]
[PlyCount "117"]
[EventDate "2019.04.30"]
[EventType "team-tourn"]
[EventCountry "RUS"]
[SourceTitle "playchess.com"]
[Source "ChessBase"]
[SourceQuality "1"]
[TimeControl "40/5400+30:1800+30"]

1. d4 {[%emt 0:00:00]} d5 {[%emt 0:00:00]} 2. c4 {[%emt 0:00:31]} c6 {[%emt 0:00:14]} 3. Nc3 {[%emt 0:01:17]} Nf6 {[%emt 0:00:16]} 4. e3 {[%emt 0:01:05]} a6 {[%emt 0:01:14]} 5. a4 {[%emt 0:01:13]} e6 {[%emt 0:04:40]} 6. Nf3 {[%emt 0:01:22]} c5 {[%emt 0:01:10]} 7. Be2 {[%emt 0:04:42]} Nc6 {[%emt 0:01:42]} 8. O-O {[%emt 0:00:24]} dxc4 {[%emt 0:04:23]} 9. Bxc4 {[%emt 0:00:42]} Be7 {[%emt 0:02:35]} 10. dxc5 {[%emt 0:11:29]} Qxd1 {[%emt 0:05:05]} 11. Rxd1 {[%emt 0:00:19]} Bxc5 {[%emt 0:00:06]} 12. Nd4 {[%emt 0:10:23]} Bd7 {[%emt 0:05:21]} 13. Nb3 {[%emt 0:03:36]} Ba7 {[%emt 0:07:21]} 14. a5 {[%emt 0:06:15]} Rc8 {[%emt 0:06:30]} 15. Nd2 {[%emt 0:16:22]} O-O {[%emt 0:05:41]} 16. Nde4 {[%emt 0:09:58]} Nxe4 {[%emt 0:01:01]} 17. Nxe4 {[%emt 0:03:32]} Nxa5 {[%emt 0:05:51]} 18. Rxd7 {[%emt 0:03:45]} Rxc4 {[%emt 0:01:06]} 19. Nd2 {[%emt 0:03:10]} Rc2 {[%emt 0:03:18]} 20. b4 {[%emt 0:00:45]} Rfc8 {[%emt 0:00:31]} 21. bxa5 {[%emt 0:06:23]} Rxc1+ {[%emt 0:00:20]} 22. Rxc1 {[%emt 0:00:06]} Rxc1+ {[%emt 0:00:05]} 23. Nf1 {[%emt 0:00:05]} Bc5 {[%emt 0:00:49]} 24. Rxb7 {[%emt 0:07:33]} Ra1 {[%emt 0:00:29]} 25. g4 {[%emt 0:00:26]} Rxa5 {[%emt 0:02:16]} 26. Nd2 {[%emt 0:01:24]} Ra4 {[%emt 0:02:40]} 27. g5 {[%emt 0:04:02]} h6 {[%emt 0:03:15]} 28. gxh6 {[%emt 0:00:26]} gxh6 {[%emt 0:00:05]} 29. Nf3 {[%emt 0:00:35]} Rb4 {[%emt 0:06:15]} 30. Rc7 {[%emt 0:00:21]} Rb5 {[%emt 0:01:23]} 31. Nd4 {[%emt 0:01:56]} Bxd4 {[%emt 0:02:48]} 32. exd4 {[%emt 0:00:01]} Rg5+ {[%emt 0:02:44]} 33. Kf1 {[%emt 0:00:03]} Kg7 {[%emt 0:00:15]} 34. f3 {[%emt 0:01:31]} h5 {[%emt 0:09:45]} 35. Ra7 {[%emt 0:00:58]} a5 {[%emt 0:01:52]} 36. h4 {[%emt 0:00:16]} Rf5 {[%emt 0:06:52]} 37. Kf2 {[%emt 0:00:32]} Kf8 {[%emt 0:00:13]} 38. Ke3 {[%emt 0:00:54]} Ke8 {[%emt 0:00:12]} 39. Ke4 {[%emt 0:00:26]} Rb5 {[%emt 0:05:56]} 40. Kf4 {[%emt 0:00:00]} Rd5 {[%emt 0:00:00]} 41. Ke3 {[%emt 0:05:59]} f6 {[%emt 0:03:38]} 42. Ke4 {[%emt 0:01:27]} Kd8 {[%emt 0:03:10]} 43. Ke3 {[%emt 0:01:42]} Kc8 {[%emt 0:00:47]} 44. Ke4 {[%emt 0:01:53]} f5+ {[%emt 0:08:09]} 45. Ke3 {[%emt 0:01:18]} Kb8 {[%emt 0:00:58]} 46. Ra6 {[%emt 0:01:43]} Kb7 {[%emt 0:01:07]} 47. Rxe6 {[%emt 0:00:11]} a4 {[%emt 0:00:04]} 48. Kf4 {[%emt 0:03:47]} a3 {[%emt 0:01:40]} 49. Re1 {[%emt 0:01:15]} Rxd4+ {[%emt 0:02:34]} 50. Kxf5 {[%emt 0:02:32]} Rxh4 {[%emt 0:00:33]} 51. Kg5 {[%emt 0:01:28]} Rh2 {[%emt 0:00:40]} 52. f4 {[%emt 0:01:02]} h4 {[%emt 0:00:23]} 53. f5 {[%emt 0:00:29]} h3 {[%emt 0:00:33]} 54. f6 {[%emt 0:04:33]} Rg2+ {[%emt 0:01:52]} 55. Kh6 {[%emt 0:03:45]} h2 {[%emt 0:00:37]} 56. Rh1 {[%emt 0:00:12]} a2 {[%emt 0:04:18]} 57. f7 {[%emt 0:00:23]} Rf2 {[%emt 0:02:42]} 58. Kg7 {[%emt 0:00:23]} Rg2+ {[%emt 0:00:03]} 59. Kh6 {[%emt 0:00:11]} 1/2-1/2

[Event "RUS-chT Premier 2019"]
[Site "Sochi"]
[Date "2019.05.04"]
[Round "4.27"]
[White "Vlasenko, Miroslav"]
[Black "Kobalia, Mikhail"]
[Result "1/2-1/2"]
[ECO "E70"]
[WhiteElo "2424"]
[BlackElo "2610"]
[Annotator "RC"]
[PlyCount "97"]
[EventDate "2019.04.30"]
[EventType "team-tourn"]
[EventCountry "RUS"]
[SourceTitle "playchess.com"]
[Source "ChessBase"]
[SourceQuality "1"]
[TimeControl "40/5400+30:1800+30"]

1. d4 {[%emt 0:00:00]} g6 {[%emt 0:00:00]} 2. e4 {[%emt 0:00:15]} d6 {[%emt 0:00:24]} 3. c4 {[%emt 0:00:18]} Nf6 {[%emt 0:00:33]} 4. Nc3 {[%emt 0:00:05]} Bg7 {[%emt 0:00:04]} 5. Bg5 {[%emt 0:00:31]} O-O {[%emt 0:00:55]} 6. h3 {[%emt 0:00:04]} Nbd7 {[%emt 0:04:24]} 7. Nf3 {[%emt 0:01:02]} e5 {[%emt 0:00:52]} 8. d5 {[%emt 0:00:12]} a5 {[%emt 0:08:42]} 9. g4 {[%emt 0:01:14]} Nc5 {[%emt 0:00:41]} 10. Nd2 {[%emt 0:00:18]} c6 {[%emt 0:05:32]} 11. Be2 {[%emt 0:05:21]} a4 {[%emt 0:02:27]} 12. b4 {[%emt 0:34:51]} axb3 {[%emt 0:04:29]} 13. axb3 {[%emt 0:02:09]} Rxa1 {[%emt 0:00:03]} 14. Qxa1 {[%emt 0:00:07]} Na6 {[%emt 0:00:25]} 15. Qb2 {[%emt 0:15:18]} c5 {[%emt 0:00:45]} 16. Nf1 {[%emt 0:00:35]} h6 {[%emt 0:02:05]} 17. Bh4 {[%emt 0:01:49]} Qa5 {[%emt 0:01:19]} 18. f3 {[%emt 0:00:41]} Nh7 {[%emt 0:10:20]} 19. Ne3 {[%emt 0:04:37]} f5 {[%emt 0:08:14]} 20. O-O {[%emt 0:01:07]} fxg4 {[%emt 0:05:32]} 21. fxg4 {[%emt 0:02:09]} Bf6 {[%emt 0:00:12]} 22. Be1 {[%emt 0:04:23]} Qd8 {[%emt 0:00:51]} 23. Ng2 {[%emt 0:00:25]} Bd7 {[%emt 0:06:12]} 24. h4 {[%emt 0:03:21]} Qc8 {[%emt 0:02:47]} 25. Qc1 {[%emt 0:02:28]} g5 {[%emt 0:06:58]} 26. Qd1 {[%emt 0:09:37]} gxh4 {[%emt 0:03:06]} 27. Nxh4 {[%emt 0:00:12]} Bxh4 {[%emt 0:00:27]} 28. Bxh4 {[%emt 0:00:20]} Ng5 {[%emt 0:01:23]} 29. Kg2 {[%emt 0:01:13]} Rxf1 {[%emt 0:00:58]} 30. Qxf1 {[%emt 0:01:26]} Kg7 {[%emt 0:04:29]} 31. Bxg5 {[%emt 0:03:36]} hxg5 {[%emt 0:00:02]} 32. Nd1 {[%emt 0:01:48]} Qf8 {[%emt 0:04:22]} 33. Qxf8+ {[%emt 0:02:19]} Kxf8 {[%emt 0:00:01]} 34. Nf2 {[%emt 0:00:46]} Ke7 {[%emt 0:00:04]} 35. Kf3 {[%emt 0:00:41]} Nc7 {[%emt 0:09:10]} 36. Ke3 {[%emt 0:00:21]} Ne8 {[%emt 0:00:29]} 37. Nh3 {[%emt 0:00:39]} Nf6 {[%emt 0:00:58]} 38. Nxg5 {[%emt 0:01:04]} Nxg4+ {[%emt 0:00:04]} 39. Bxg4 {[%emt 0:01:20]} Bxg4 {[%emt 0:00:02]} 40. Nf3 {[%emt 0:00:00]} Kf6 {[%emt 0:00:00]} 41. Nd2 {[%emt 0:03:01]} Bd1 {[%emt 0:18:09]} 42. Kd3 {[%emt 0:00:14]} Kg5 {[%emt 0:00:08]} 43. Ke3 {[%emt 0:01:46]} b6 {[%emt 0:04:27]} 44. Kd3 {[%emt 0:00:29]} Kf6 {[%emt 0:05:54]} 45. Kc3 {[%emt 0:00:43]} Kg6 {[%emt 0:01:14]} 46. Nb1 {[%emt 0:01:37]} Bg4 {[%emt 0:01:37]} 47. b4 {[%emt 0:00:21]} Bf3 {[%emt 0:01:36]} 48. bxc5 {[%emt 0:00:53]} bxc5 {[%emt 0:00:09]} 49. Kd3 {[%emt 0:00:26]} 1/2-1/2

[Event "RUS-chT Premier 2019"]
[Site "Sochi"]
[Date "2019.05.04"]
[Round "4.29"]
[White "Levin, Evgeny A."]
[Black "Popov, Ivan"]
[Result "1/2-1/2"]
[ECO "D20"]
[WhiteElo "2516"]
[BlackElo "2600"]
[Annotator "RC"]
[PlyCount "80"]
[EventDate "2019.04.30"]
[EventType "team-tourn"]
[EventCountry "RUS"]
[SourceTitle "playchess.com"]
[Source "ChessBase"]
[SourceQuality "1"]
[TimeControl "40/5400+30:1800+30"]

1. d4 {[%emt 0:00:00]} d5 {[%emt 0:00:00]} 2. c4 {[%emt 0:00:00]} dxc4 {[%emt 0:00:00]} 3. e4 {[%emt 0:00:00]} e5 {[%emt 0:00:36]} 4. Nf3 {[%emt 0:00:34]} exd4 {[%emt 0:00:13]} 5. Bxc4 {[%emt 0:00:21]} Bb4+ {[%emt 0:00:21]} 6. Nbd2 {[%emt 0:00:38]} Nc6 {[%emt 0:00:44]} 7. O-O {[%emt 0:00:23]} Nf6 {[%emt 0:00:17]} 8. e5 {[%emt 0:00:40]} Nd5 {[%emt 0:00:11]} 9. Nb3 {[%emt 0:00:23]} Be7 {[%emt 0:01:32]} 10. Qe2 {[%emt 0:13:35]} O-O {[%emt 0:01:38]} 11. Rd1 {[%emt 0:05:14]} Re8 {[%emt 0:01:38]} 12. Qe4 {[%emt 0:21:37]} Nb6 {[%emt 0:08:17]} 13. Bb5 {[%emt 0:08:02]} Bd7 {[%emt 0:34:01]} 14. Nbxd4 {[%emt 0:05:43]} Nxd4 {[%emt 0:00:24]} 15. Rxd4 {[%emt 0:00:30]} c6 {[%emt 0:09:38]} 16. Bd3 {[%emt 0:19:17]} g6 {[%emt 0:00:17]} 17. Bc2 {[%emt 0:01:20]} Nd5 {[%emt 0:09:33]} 18. Bb3 {[%emt 0:00:17]} Bf5 {[%emt 0:06:48]} 19. Qe2 {[%emt 0:00:48]} Bc5 {[%emt 0:04:13]} 20. Bg5 {[%emt 0:13:50]} f6 {[%emt 0:02:39]} 21. Rxd5 {[%emt 0:01:58]} cxd5 {[%emt 0:00:02]} 22. Rd1 {[%emt 0:00:39]} fxg5 {[%emt 0:07:13]} 23. Rxd5 {[%emt 0:00:06]} Qb6 {[%emt 0:00:16]} 24. Rxc5+ {[%emt 0:02:03]} Be6 {[%emt 0:00:08]} 25. Bxe6+ {[%emt 0:01:00]} Rxe6 {[%emt 0:01:04]} 26. Qc4 {[%emt 0:00:37]} Rd8 {[%emt 0:01:21]} 27. Nd4 {[%emt 0:03:02]} Kh8 {[%emt 0:00:40]} 28. h4 {[%emt 0:00:34]} Ree8 {[%emt 0:03:06]} 29. Rc7 {[%emt 0:00:46]} Rf8 {[%emt 0:01:09]} 30. Rf7 {[%emt 0:00:29]} Rxf7 {[%emt 0:06:00]} 31. Qxf7 {[%emt 0:00:02]} Qxd4 {[%emt 0:00:35]} 32. Qf6+ {[%emt 0:00:03]} Kg8 {[%emt 0:00:03]} 33. Qe6+ {[%emt 0:00:04]} Kh8 {[%emt 0:00:12]} 34. Qf6+ {[%emt 0:00:02]} Kg8 {[%emt 0:00:04]} 35. Qe6+ {[%emt 0:00:05]} Kh8 {[%emt 0:00:02]} 36. Qf6+ {[%emt 0:00:04]} Kg8 {[%emt 0:00:03]} 37. Qe6+ {[%emt 0:00:05]} Kh8 {[%emt 0:00:02]} 38. Qf6+ {[%emt 0:00:04]} Kg8 {[%emt 0:00:03]} 39. Qe6+ {[%emt 0:00:04]} Kh8 {[%emt 0:00:02]} 40. Qf6+ {[%emt 0:00:00]} Kg8 {[%emt 0:00:00]} 1/2-1/2

[Event "RUS-chT Premier 2019"]
[Site "Sochi"]
[Date "2019.05.04"]
[Round "4.30"]
[White "Gordievsky, Dmitry"]
[Black "Ionov, Sergey"]
[Result "1/2-1/2"]
[ECO "D37"]
[WhiteElo "2585"]
[BlackElo "2530"]
[Annotator "ChessBase"]
[PlyCount "98"]
[EventDate "2019.04.30"]
[EventType "team-tourn"]
[EventCountry "RUS"]
[SourceTitle "playchess.com"]
[Source "ChessBase"]
[SourceQuality "1"]
[TimeControl "40/5400+30:1800+30"]

1. Nf3 {[%emt 0:00:00]} d5 {[%emt 0:00:00]} 2. d4 {[%emt 0:00:19]} Nf6 {[%emt 0:00:45]} 3. c4 {[%emt 0:00:49]} e6 {[%emt 0:01:11]} 4. Nc3 {[%emt 0:04:10]} Be7 {[%emt 0:02:45]} 5. Bf4 {[%emt 0:01:42]} O-O {[%emt 0:00:08]} 6. a3 {[%emt 0:01:21]} b6 {[%emt 0:04:18]} 7. Qc2 {[%emt 0:01:20]} c5 {[%emt 0:05:58]} 8. Rd1 {[%emt 0:00:35]} Bb7 {[%emt 0:12:39]} 9. cxd5 {[%emt 0:03:13]} exd5 {[%emt 0:03:57]} 10. e3 {[%emt 0:02:48]} Nbd7 {[%emt 0:00:09]} 11. Bd3 {[%emt 0:05:06]} a6 {[%emt 0:10:21]} 12. O-O {[%emt 0:04:59]} Re8 {[%emt 0:07:33]} 13. Bg3 {[%emt 0:05:24]} c4 {[%emt 0:05:55]} 14. Bf5 {[%emt 0:02:22]} g6 {[%emt 0:03:54]} 15. Bh3 {[%emt 0:00:15]} Nh5 {[%emt 0:00:52]} 16. Bh4 {[%emt 0:13:09]} Bxh4 {[%emt 0:05:00]} 17. Nxh4 {[%emt 0:02:47]} Qxh4 {[%emt 0:04:33]} 18. Bxd7 {[%emt 0:00:05]} Red8 {[%emt 0:01:01]} 19. g3 {[%emt 0:06:22]} Qe7 {[%emt 0:00:27]} 20. Bh3 {[%emt 0:00:27]} b5 {[%emt 0:00:53]} 21. Bg2 {[%emt 0:00:39]} f5 {[%emt 0:00:54]} 22. Rfe1 {[%emt 0:10:23]} Nf6 {[%emt 0:01:16]} 23. f3 {[%emt 0:01:47]} Re8 {[%emt 0:02:33]} 24. h3 {[%emt 0:02:50]} Qd7 {[%emt 0:11:48]} 25. g4 {[%emt 0:01:11]} fxg4 {[%emt 0:00:06]} 26. fxg4 {[%emt 0:07:20]} a5 {[%emt 0:05:12]} 27. Rf1 {[%emt 0:03:29]} Ra6 {[%emt 0:00:48]} 28. g5 {[%emt 0:06:20]} Nh5 {[%emt 0:01:52]} 29. Qf2 {[%emt 0:00:06]} Raa8 {[%emt 0:01:24]} 30. Qf3 {[%emt 0:04:40]} Rad8 {[%emt 0:00:14]} 31. Rde1 {[%emt 0:02:00]} Bc6 {[%emt 0:00:38]} 32. Ne2 {[%emt 0:01:26]} b4 {[%emt 0:03:48]} 33. axb4 {[%emt 0:01:16]} axb4 {[%emt 0:00:01]} 34. h4 {[%emt 0:03:10]} Qe7 {[%emt 0:01:39]} 35. Nf4 {[%emt 0:02:41]} Nxf4 {[%emt 0:00:53]} 36. Qxf4 {[%emt 0:00:08]} Rf8 {[%emt 0:00:42]} 37. Qe5 {[%emt 0:01:04]} Qxe5 {[%emt 0:01:04]} 38. dxe5 {[%emt 0:00:06]} Rfe8 {[%emt 0:01:10]} 39. Rf6 {[%emt 0:00:22]} Ba8 {[%emt 0:00:20]} 40. Ra1 {[%emt 0:00:00]} Rxe5 {[%emt 0:00:00]} 41. Ra7 {[%emt 0:04:59]} c3 {[%emt 0:09:58]} 42. bxc3 {[%emt 0:00:14]} bxc3 {[%emt 0:00:37]} 43. Rff7 {[%emt 0:02:43]} Rxe3 {[%emt 0:04:38]} 44. Rg7+ {[%emt 0:00:22]} Kf8 {[%emt 0:00:37]} 45. Rxh7 {[%emt 0:00:50]} Kg8 {[%emt 0:00:17]} 46. Rag7+ {[%emt 0:00:49]} Kf8 {[%emt 0:00:07]} 47. Rc7 {[%emt 0:01:44]} Kg8 {[%emt 0:00:23]} 48. Rhg7+ {[%emt 0:01:26]} Kh8 {[%emt 0:01:46]} 49. Rh7+ {[%emt 0:05:57]} Kg8 {[%emt 0:00:39]} 1/2-1/2

[Event "RUS-chT Premier 2019"]
[Site "Sochi"]
[Date "2019.05.05"]
[Round "5.3"]
[White "Kobalia, Mikhail"]
[Black "Pershin, Denis"]
[Result "1-0"]
[ECO "D45"]
[WhiteElo "2610"]
[BlackElo "2409"]
[Annotator "RC"]
[PlyCount "77"]
[EventDate "2019.05.01"]
[EventType "team-tourn"]
[EventCountry "RUS"]
[SourceTitle "playchess.com"]
[Source "ChessBase"]
[SourceQuality "1"]
[TimeControl "40/5400+30:1800+30"]

1. Nf3 {[%emt 0:00:00]} d5 {[%emt 0:00:00]} 2. d4 {[%emt 0:00:35]} Nf6 {[%emt 0:00:00]} 3. c4 {[%emt 0:00:04]} c6 {[%emt 0:00:01]} 4. Nc3 {[%emt 0:00:36]} e6 {[%emt 0:00:08]} 5. e3 {[%emt 0:00:33]} Nbd7 {[%emt 0:00:07]} 6. Qc2 {[%emt 0:00:05]} Bd6 {[%emt 0:00:10]} 7. Bd3 {[%emt 0:00:06]} O-O {[%emt 0:00:23]} 8. O-O {[%emt 0:00:04]} dxc4 {[%emt 0:00:17]} 9. Bxc4 {[%emt 0:00:05]} b5 {[%emt 0:01:20]} 10. Bd3 {[%emt 0:03:30]} Bb7 {[%emt 0:00:18]} 11. a3 {[%emt 0:01:45]} a5 {[%emt 0:00:54]} 12. Rd1 {[%emt 0:09:38]} Qc7 {[%emt 0:03:28]} 13. e4 {[%emt 0:03:50]} e5 {[%emt 0:00:16]} 14. h3 {[%emt 0:01:18]} Rfe8 {[%emt 0:06:43]} 15. Bg5 {[%emt 0:06:23]} h6 {[%emt 0:27:52]} 16. Bxf6 {[%emt 0:05:23]} Nxf6 {[%emt 0:00:16]} 17. Rac1 {[%emt 0:02:01]} exd4 {[%emt 0:05:01]} 18. Nxb5 {[%emt 0:01:53]} cxb5 {[%emt 0:00:06]} 19. Qxc7 {[%emt 0:00:03]} Bxc7 {[%emt 0:00:06]} 20. Rxc7 {[%emt 0:00:03]} Bxe4 {[%emt 0:00:07]} 21. Bxb5 {[%emt 0:01:19]} Bxf3 {[%emt 0:00:19]} 22. gxf3 {[%emt 0:00:05]} Red8 {[%emt 0:14:19]} 23. Bc4 {[%emt 0:07:25]} Kh7 {[%emt 0:28:29]} 24. Rxf7 {[%emt 0:01:29]} Rac8 {[%emt 0:00:45]} 25. Bd3+ {[%emt 0:04:49]} Kg8 {[%emt 0:00:15]} 26. Ra7 {[%emt 0:00:22]} Rc5 {[%emt 0:00:15]} 27. Re1 {[%emt 0:03:54]} Nh5 {[%emt 0:02:48]} 28. Re4 {[%emt 0:03:30]} Rc1+ {[%emt 0:01:01]} 29. Kh2 {[%emt 0:00:54]} Rd1 {[%emt 0:00:52]} 30. Bc4+ {[%emt 0:03:04]} Kh8 {[%emt 0:00:07]} 31. Re5 {[%emt 0:02:17]} Nf6 {[%emt 0:00:17]} 32. Rexa5 {[%emt 0:01:18]} Kh7 {[%emt 0:01:01]} 33. Be6 {[%emt 0:02:54]} h5 {[%emt 0:02:15]} 34. Rg5 {[%emt 0:00:49]} d3 {[%emt 0:01:15]} 35. Rgxg7+ {[%emt 0:02:57]} Kh6 {[%emt 0:01:09]} 36. Bf5 {[%emt 0:00:33]} Rg8 {[%emt 0:00:14]} 37. Rxg8 {[%emt 0:00:10]} Nxg8 {[%emt 0:00:06]} 38. f4 {[%emt 0:00:24]} Nf6 {[%emt 0:00:11]} 39. Rf7 {[%emt 0:00:06]} 1-0

[Event "RUS-chT Premier 2019"]
[Site "Sochi"]
[Date "2019.05.05"]
[Round "5.7"]
[White "Iljiushenok, Ilia"]
[Black "Schekachikhin, Maksim"]
[Result "1/2-1/2"]
[ECO "C18"]
[WhiteElo "2534"]
[BlackElo "2424"]
[Annotator "ChessBase"]
[PlyCount "33"]
[EventDate "2019.05.01"]
[EventType "team-tourn"]
[EventCountry "RUS"]
[SourceTitle "playchess.com"]
[Source "ChessBase"]
[SourceQuality "1"]
[TimeControl "40/5400+30:1800+30"]

1. e4 {[%emt 0:00:00]} e6 {[%emt 0:00:00]} 2. d4 {[%emt 0:00:00]} d5 {[%emt 0:00:00]} 3. Nc3 {[%emt 0:00:00]} Bb4 {[%emt 0:00:00]} 4. e5 {[%emt 0:00:00]} Ne7 {[%emt 0:00:07]} 5. a3 {[%emt 0:00:00]} Bxc3+ {[%emt 0:00:07]} 6. bxc3 {[%emt 0:00:00]} c5 {[%emt 0:00:08]} 7. Qg4 {[%emt 0:00:23]} cxd4 {[%emt 0:00:39]} 8. Qxg7 {[%emt 0:00:06]} Rg8 {[%emt 0:00:04]} 9. Qxh7 {[%emt 0:00:03]} Qc7 {[%emt 0:00:40]} 10. Rb1 {[%emt 0:00:23]} Qxe5+ {[%emt 0:10:47]} 11. Ne2 {[%emt 0:00:21]} dxc3 {[%emt 0:04:28]} 12. h4 {[%emt 0:00:14]} Nbc6 {[%emt 0:04:10]} 13. Bf4 {[%emt 0:08:55]} Qf6 {[%emt 0:11:56]} 14. Bg5 {[%emt 0:00:46]} Qe5 {[%emt 0:05:42]} 15. Bf4 {[%emt 0:54:31]} Qf6 {[%emt 0:06:18]} 16. Bg5 {[%emt 0:01:48]} Qe5 {[%emt 0:01:13]} 17. Bf4 {[%emt 0:01:08]} 1/2-1/2